bitfinex/quotes_ETHUSD_20220311
["timestamp","ask_amount","ask_price","bid_price","bid_amount"]
[1646998299996,0.20809,2623.9,2622.7,9.07102658]
[1646998300202,0.20809,2623.9,2622.9,0.4761899]
[1646998300203,0.47849,2623.9,2622.9,0.4761899]
[1646998300400,0.0691552,2624.6,2623.2,0.95236]
[1646998300599,0.04831599,2623.3,2623.1,9.0]
[1646998300797,0.04831599,2623.3,2623.2,1.00825426]
[1646998301000,0.1905,2624.1,2623.3,4.0]
[1646998301198,0.1905,2624.1,2623.3,6.85748]
[1646998301442,0.1905,2624.1,2623.4,3.5]
[1646998301649,0.1905,2624.1,2623.3,2.85748]
[1646998301857,0.00422665,2623.8,2623.4,1.035188]
[1646998302154,0.1905,2624.2,2623.7,1.90469]
[1646998302649,0.42754667,2624.7,2623.7,1.90469]
[1646998302650,3.68256,2624.6,2623.7,1.90469]
[1646998302850,0.1816,2624.6,2623.7,1.90469]
[1646998303052,0.42754667,2624.7,2623.9,0.95235]
[1646998303253,0.42754667,2624.7,2623.8,0.95236]
[1646998303254,0.461,2624.6,2624.5,0.90210664]
[1646998303452,0.461,2624.6,2624.3,1.90425]
[1646998303652,0.0194217,2624.7,2624.3,1.90425]
[1646998304048,0.0194217,2624.7,2624.3,1.90004189]
[1646998304248,0.0194152,2625.2,2624.3,1.90004189]
[1646998304249,1.2e-05,2625.1,2624.4,0.95213]
[1646998304455,0.0158378,2625.1,2624.6,3.50273512]
[1646998304652,0.0485343,2626.0,2624.8,8.57694987]
[1646998304853,0.461,2625.8,2624.8,8.76734987]
[1646998305084,0.461,2625.8,2625.0,1.90385]
[1646998305285,0.461,2625.8,2625.4,0.86222467]
[1646998305487,0.461,2625.8,2625.1,0.95193]
[1646998305488,1.298401,2625.3,2625.2,0.57107]
[1646998305887,0.461,2625.8,2625.3,4.5]
[1646998306085,0.461,2625.8,2625.2,0.57107]
[1646998306286,0.461,2625.8,2625.1,2.85541]
[1646998306590,6.94e-05,2625.9,2625.8,0.06822674]
[1646998306788,6.94e-05,2625.9,2625.7,1.03151119]
[1646998306986,0.0291839,2626.3,2625.9,5.5]
[1646998307186,0.0291839,2626.3,2625.7,0.9514]
[1646998307590,1.51159298,2626.2,2625.6,1.9028]
[1646998307788,1.51159298,2626.2,2625.4,0.83659465]
[1646998307989,1.51159298,2626.2,2625.5,0.95179]
[1646998308594,0.461,2626.2,2625.5,1.52285]
[1646998308851,0.461,2626.2,2625.4,2.8553]
[1646998308852,0.0151204,2626.4,2625.8,1.90291]
[1646998309045,0.0151204,2626.4,2625.8,2.09321]
[1646998309249,0.0151204,2626.4,2625.8,1.90291]
[1646998309250,0.4761204,2626.4,2625.8,1.90291]
[1646998309648,3.5,2626.3,2625.8,1.42711]
[1646998309852,0.461,2626.2,2625.8,1.42711]
[1646998310646,1.0,2626.8,2625.8,1.42711]
[1646998310847,0.461,2626.7,2625.8,1.42711]
[1646998311048,0.461,2626.6,2625.8,1.42711]
[1646998311247,0.461,2626.5,2625.8,1.42711]
[1646998311450,0.46531825,2626.4,2625.8,1.42711]
[1646998311646,1.04539601,2626.9,2625.8,1.42711]
[1646998311850,1.04539601,2626.9,2626.0,0.06522907]
[1646998311851,0.461,2626.8,2626.0,0.06522907]
[1646998312047,0.461,2626.8,2626.2,1.903]
[1646998312348,0.027166,2626.9,2626.4,8.5]
[1646998312596,0.027166,2626.9,2626.8,0.99344557]
[1646998312889,0.027166,2626.9,2626.6,1.14151]
[1646998313489,0.0493391,2627.1,2626.7,8.5]
[1646998313490,0.0179474,2627.1,2626.7,8.5]
[1646998313696,0.0480672,2627.6,2626.9,8.5]
[1646998313697,0.0490272,2627.6,2626.9,8.5]
[1646998313897,0.0490272,2627.6,2627.1,8.5]
[1646998313898,0.0053536,2627.6,2627.1,8.5]
[1646998314096,0.0053536,2627.6,2627.2,0.21395212]
[1646998314596,0.92188932,2628.3,2627.7,0.95089]
[1646998314796,0.93259652,2628.3,2627.7,0.95089]
[1646998314995,3.461,2628.2,2627.7,0.95089]
[1646998315198,0.1902,2628.1,2627.7,0.95089]
[1646998315397,0.6512,2628.1,2627.7,0.95089]
[1646998315595,0.461,2628.1,2627.7,0.95089]
[1646998315795,3.0,2627.8,2626.7,3.8046]
[1646998315997,2.487e-05,2626.3,2626.2,0.10508552]
[1646998316199,0.02365767,2628.3,2626.4,1.426419]
[1646998316200,0.0107072,2628.3,2626.4,1.426419]
[1646998316455,0.0107072,2628.3,2627.9,2.07825074]
[1646998316456,0.00432626,2628.0,2627.9,2.07825074]
[1646998316654,0.3819,2628.7,2627.9,2.07825074]
[1646998316856,0.3819,2628.7,2628.0,0.01247094]
[1646998317049,0.3819,2628.7,2628.2,0.4753113]
[1646998317251,3.2980505,2629.4,2628.2,8.4753113]
[1646998317450,3.2980505,2629.4,2628.3,1.14999921]
[1646998317451,2.6468505,2629.4,2628.3,1.14999921]
[1646998317753,2.6468505,2629.4,2628.5,6.9936906]
[1646998317754,0.00096,2629.3,2628.5,6.9936906]
[1646998317959,2.6468505,2629.4,2628.2,1.4258713]
[1646998318152,2.6468505,2629.4,2628.0,2.95690355]
[1646998318153,0.461,2629.1,2628.0,2.95690355]
[1646998318355,0.6512,2629.1,2628.0,2.95690355]
[1646998318558,0.6512,2629.1,2628.2,0.57045]
[1646998318855,0.6512,2629.1,2628.3,1.02699263]
[1646998319056,0.6512,2629.1,2628.0,2.85189]
[1646998319254,0.9512,2629.1,2628.0,2.85189]
[1646998319654,0.05165446,2629.0,2628.4,1.90154]
[1646998319852,0.461,2628.9,2628.4,1.90154]
[1646998320092,0.05692558,2628.5,2628.0,2.85189]
[1646998320296,0.461,2628.4,2627.3,3.86871504]
[1646998320492,0.461,2628.3,2627.3,3.80334]
[1646998320691,0.461,2628.2,2627.6,1.90206]
[1646998320890,0.00216,2629.1,2627.6,1.90206]
[1646998321092,1.32299691,2628.8,2627.7,3.42297]
[1646998321292,0.00439289,2628.5,2627.7,3.42736433]
[1646998321493,0.461,2628.4,2627.7,3.42736433]
[1646998321892,0.461,2628.4,2627.9,0.95081]
[1646998322293,0.461,2628.4,2628.0,0.75844]
[1646998322493,0.461,2628.4,2628.0,3.61063]
[1646998322693,0.461,2628.4,2628.2,0.88953624]
[1646998323093,0.461,2628.4,2628.2,0.188]
[1646998323297,0.461,2628.4,2628.1,0.95079]
[1646998323695,0.461,2628.4,2627.7,0.188]
[1646998324350,0.461,2628.4,2627.9,0.57055]
[1646998324548,0.461,2628.4,2627.2,1.7115]
[1646998324549,3.0,2628.3,2627.2,1.7115]
[1646998324749,3.0,2628.3,2626.7,1.0]
[1646998324750,0.47317238,2628.2,2627.0,0.07004923]
[1646998324945,0.47317238,2628.2,2626.9,3.5]
[1646998325145,0.46196,2628.2,2626.8,0.13819996]
[1646998325348,0.46196,2628.2,2628.0,0.96124795]
[1646998325552,0.461,2628.2,2628.0,0.96124795]
[1646998326347,0.461,2628.2,2628.1,0.57048]
[1646998326552,0.00438855,2628.5,2628.2,8.5]
[1646998326850,0.00438855,2628.5,2628.2,8.57916077]
[1646998327049,0.01749,2629.2,2628.2,8.57916077]
[1646998327350,8.87e-05,2628.5,2628.4,0.95051]
[1646998327597,2.6468505,2629.4,2628.5,8.5]
[1646998327797,0.01733312,2629.4,2628.7,8.5]
[1646998328001,0.01733312,2629.4,2628.8,0.08266263]
[1646998328206,0.01733312,2629.4,2628.9,0.3801016]
[1646998328207,3.312e-05,2629.4,2628.9,0.3801016]
[1646998328403,3.312e-05,2629.4,2629.0,0.22166138]
[1646998328612,3.312e-05,2629.4,2629.1,1.81278611]
[1646998328801,3.312e-05,2629.4,2629.3,0.07818127]
[1646998330008,0.051929,2629.8,2629.3,0.07818127]
[1646998330009,0.00265088,2630.0,2629.5,8.5]
[1646998330317,21.4906819,2631.0,2629.6,8.5]
[1646998330318,0.00530176,2630.4,2629.6,8.5]
[1646998330506,0.00530176,2630.4,2629.8,0.57001]
[1646998330708,1.76e-06,2630.4,2630.3,1.0]
[1646998330905,0.0024752,2630.5,2630.4,0.07935441]
[1646998330906,0.01068048,2630.5,2630.4,0.07935441]
[1646998331104,0.01068048,2630.5,2630.3,1.88940329]
[1646998331105,0.04035807,2630.4,2630.3,1.88940329]
[1646998331344,0.01068048,2630.5,2630.3,3.02910329]
[1646998331345,0.01060352,2630.5,2630.3,3.02910329]
[1646998331544,0.0174743,2630.9,2630.5,8.5]
[1646998331747,0.0291839,2631.5,2630.8,8.5]
[1646998331958,0.0291839,2631.5,2631.0,0.94952]
[1646998332147,0.0291839,2631.5,2631.1,1.21283342]
[1646998332353,0.0291839,2631.5,2631.1,1.13942]
[1646998332550,0.0291839,2631.5,2631.2,0.56971]
[1646998332754,0.0291839,2631.5,2630.8,1.89907]
[1646998332951,0.0291839,2631.5,2630.6,0.94981]
[1646998333359,0.00152612,2631.2,2630.7,0.08356014]
[1646998333752,0.00152612,2631.2,2630.9,0.08362145]
[1646998334055,0.00013172,2631.5,2630.9,5.0]
[1646998334455,0.00013172,2631.5,2630.9,4.99578782]
[1646998334657,0.00442978,2631.2,2630.5,0.56993]
[1646998334855,0.46542978,2631.2,2630.5,0.56993]
[1646998335290,0.46542978,2631.2,2630.1,0.95001]
[1646998335291,12.21542978,2631.2,2630.1,0.95001]
[1646998335492,12.21542978,2631.2,2630.3,0.07626785]
[1646998335493,0.461,2631.2,2630.3,0.07626785]
[1646998335691,0.74946561,2631.2,2629.8,2.659185]
[1646998335894,0.74946561,2631.2,2630.6,0.56992]
[1646998335895,0.461,2631.2,2630.6,0.56992]
[1646998336295,0.461,2631.2,2630.7,0.19]
[1646998336497,0.0163189,2632.0,2630.8,8.5]
[1646998336697,3.05039489,2631.8,2631.0,0.3798015]
[1646998336897,0.0163189,2632.0,2631.2,9.06968]
[1646998337097,1.89e-05,2632.0,2631.3,0.32809996]
[1646998337297,1.89e-05,2632.0,2631.3,0.3998025]
[1646998337499,3.5480672,2632.8,2631.5,8.5]
[1646998337500,1.17062489,2632.8,2631.5,8.5]
[1646998337699,0.0181432,2632.8,2631.9,2.65713]
[1646998337900,0.0295096,2633.6,2632.1,8.5]
[1646998338097,0.0895003,2633.7,2632.6,0.5693]
[1646998338098,0.528161,2633.7,2632.6,0.5693]
[1646998338299,0.5150118,2634.0,2632.9,0.01246426]
[1646998338300,0.5,2634.0,2632.9,0.01246426]
[1646998338506,0.00349586,2634.1,2633.5,0.01214026]
[1646998338507,0.0188686,2633.9,2633.5,0.01214026]
[1646998338700,9.586e-05,2634.1,2633.6,2.2764859]
[1646998338963,9.586e-05,2634.1,2633.6,1.89708]
[1646998339163,9.586e-05,2634.1,2633.5,1.27647996]
[1646998339363,0.0723574,2634.6,2633.5,1.27647996]
[1646998339364,0.04693498,2634.6,2633.5,1.27647996]
[1646998339563,0.04693498,2634.6,2633.1,0.94885]
[1646998339564,0.461,2634.5,2633.1,0.94885]
[1646998339764,0.65166,2634.5,2633.1,0.94885]
[1646998340166,0.46196,2634.5,2633.5,1.06045449]
[1646998340365,0.461,2634.5,2633.6,0.0012]
[1646998340768,0.6507,2634.5,2633.6,0.0012]
[1646998340971,0.9507,2634.5,2633.6,0.0012]
[1646998341367,3.6897,2634.4,2633.6,0.0012]
[1646998341571,0.461,2634.3,2633.6,0.0012]
[1646998341865,0.76799172,2634.3,2633.6,0.0012]
[1646998342067,0.00164163,2633.5,2633.0,1.13861]
[1646998342268,0.461,2633.4,2632.7,1.89787]
[1646998342468,0.461,2633.4,2632.9,0.94897]
[1646998343095,0.00442986,2633.2,2632.9,0.94897]
[1646998343499,0.00442986,2633.2,2633.0,0.9489698]
[1646998344001,0.00164163,2633.5,2633.0,0.56941]
[1646998344202,0.00164163,2633.5,2632.7,1.89787]
[1646998344203,0.4154298,2633.4,2632.7,4.5]
[1646998344702,0.0333798,2633.4,2632.7,4.5]
[1646998344903,0.0333798,2633.4,2632.8,0.56945]
[1646998345103,0.0333798,2633.4,2632.7,4.5]
[1646998345512,0.0333798,2633.4,2633.1,0.84772899]
[1646998345903,0.0333798,2633.4,2632.7,4.6897]
[1646998346105,0.0333798,2633.4,2632.5,0.1897]
[1646998346347,0.0333798,2633.4,2632.2,0.1899]
[1646998346551,9.63182314,2632.0,2631.8,2.088191]
[1646998346749,0.10957326,2633.5,2631.9,10.455374]
[1646998346948,0.10957326,2633.5,2632.7,1.04802855]
[1646998346949,0.92991429,2633.2,2632.7,1.04802855]
[1646998347148,0.92991429,2633.2,2632.2,1.13899]
[1646998347349,1.39091429,2633.2,2632.2,1.13899]
[1646998347951,1.39091429,2633.2,2632.6,0.0044307]
[1646998347952,0.461,2633.2,2632.6,0.0044307]
[1646998348348,0.461,2633.2,2632.3,0.5695]
[1646998348854,0.461,2633.2,2632.7,0.90286371]
[1646998349049,0.461,2633.2,2632.3,0.5695]
[1646998349448,0.461,2633.2,2632.4,0.94917]
[1646998349649,0.461,2633.2,2632.6,0.56951]
[1646998350094,0.00640779,2633.4,2632.7,0.1899]
[1646998350897,0.00640779,2633.4,2633.0,0.56942]
[1646998351099,0.00640779,2633.4,2632.7,0.94906]
[1646998351300,0.46740779,2633.4,2632.5,1.13887]
[1646998351520,0.46740779,2633.4,2632.5,1.14188009]
[1646998351521,3.5,2633.3,2632.5,1.14188009]
[1646998351701,3.5,2633.3,2632.5,0.00301009]
[1646998351702,0.461,2633.2,2632.5,0.00301009]
[1646998351904,11.75,2633.1,2632.5,0.00301009]
[1646998352100,0.461,2633.2,2632.5,0.00301009]
[1646998352101,12.1351,2632.9,2632.5,0.00301009]
[1646998352303,12.1351,2632.9,2631.4,6.4646]
[1646998352304,0.3851,2632.5,2631.0,0.3798]
[1646998352502,12.1351,2632.3,2630.5,18.3687]
[1646998352702,12.1351,2632.1,2630.3,3.863892]
[1646998352904,12.1351,2631.9,2630.6,0.3798957]
[1646998353101,12.1351,2631.9,2630.7,1.13399079]
[1646998353102,1.06082377,2631.3,2630.7,1.13399079]
[1646998353313,0.461,2631.2,2630.7,1.13399079]
[1646998353502,0.3,2631.4,2630.6,0.56994]
[1646998353707,0.00096,2631.8,2630.9,1.17476839]
[1646998353989,0.00096,2632.0,2631.1,0.05677044]
[1646998354192,1.00640449,2633.2,2631.2,0.26666906]
[1646998354193,0.00096,2632.3,2631.2,0.26666906]
[1646998354385,0.461,2632.8,2631.4,0.94929]
[1646998354584,0.85000584,2631.6,2631.5,0.56959]
[1646998354787,0.85000584,2631.6,2631.4,1.13917]
[1646998354985,0.85000584,2631.6,2630.9,0.03510839]
[1646998355187,12.1351,2631.4,2630.9,0.03510839]
[1646998355390,0.461,2631.4,2630.9,0.03510839]
[1646998355786,0.461,2631.4,2631.0,1.13959]
[1646998356285,0.461,2631.4,2631.0,1.13506143]
[1646998356692,0.461,2631.4,2631.0,0.00444646]
[1646998356693,12.1351,2631.1,2631.0,0.00444646]
[1646998356887,13.60038098,2631.1,2631.0,0.00444646]
[1646998357086,1.85038098,2631.1,2631.0,0.00444646]
[1646998357286,1.85038098,2631.1,2630.9,0.03510839]
[1646998357486,1.85038098,2631.1,2630.9,0.03930304]
[1646998357695,22.1351,2631.0,2630.9,0.03110304]
[1646998357895,22.1351,2631.0,2630.9,0.01060304]
[1646998357896,22.5961,2631.0,2630.9,0.01060304]
[1646998358097,22.5661,2631.0,2630.9,0.00240304]
[1646998358301,12.1051,2630.5,2630.4,0.5]
[1646998358508,12.1051,2630.5,2629.4,0.3795]
[1646998358509,16.0661,2630.5,2629.4,0.3795]
[1646998358702,16.0661,2630.5,2628.5,1.90073]
[1646998358703,17.3661,2630.5,2628.5,1.90073]
[1646998358900,12.1351,2630.4,2629.1,0.95043]
[1646998359101,0.06503069,2630.2,2629.1,0.95043]
[1646998359500,0.461,2630.1,2629.6,1.0084306]
[1646998359700,0.07415676,2630.0,2629.4,1.90036]
[1646998359903,0.461,2629.9,2629.5,0.95018]
[1646998360102,0.0574045,2629.8,2629.4,1.90036]
[1646998360300,0.461,2629.7,2629.4,1.90036]
[1646998360506,0.05835435,2629.6,2629.4,1.90036]
[1646998360704,1.5351013,2629.5,2629.1,1.90032]
[1646998360907,1.5351013,2629.5,2628.6,0.03026833]
[1646998360908,0.07185915,2629.4,2628.5,1.71068]
[1646998361203,0.461,2629.3,2628.9,3.04133]
[1646998361450,0.06765183,2629.2,2628.9,3.04133]
[1646998361643,0.3,2629.6,2628.9,3.04133]
[1646998361644,0.461,2629.6,2628.9,3.04133]
[1646998361845,0.06202467,2629.5,2628.9,3.04133]
[1646998362045,0.08080637,2629.5,2629.0,1.52066]
[1646998362251,0.84012172,2629.3,2629.1,0.00447138]
[1646998362450,0.4797817,2629.5,2629.1,0.00447138]
[1646998362451,0.53039111,2629.2,2629.1,0.00447138]
[1646998363052,12.68427281,2629.2,2629.1,7.138e-05]
[1646998363251,16.4148817,2629.2,2628.1,1.90146]
[1646998363450,0.05732652,2629.1,2628.1,1.90146]
[1646998363649,0.3851,2628.9,2628.1,1.90146]
[1646998363849,1.08224315,2628.6,2628.1,1.90146]
[1646998364051,1.08224315,2628.6,2628.1,3.80305]
[1646998364052,0.461,2628.5,2628.1,3.80305]
[1646998364253,0.00096,2629.2,2628.3,6.5]
[1646998364458,0.3,2628.8,2628.3,6.5]
[1646998364652,0.3,2629.3,2628.3,6.5]
[1646998364853,0.06271417,2629.2,2628.3,6.5]
[1646998365095,0.06271417,2629.2,2628.8,0.95053]
[1646998365295,0.461,2629.2,2628.8,0.95053]
[1646998365498,0.05633964,2629.1,2628.3,0.7603413]
[1646998365703,0.05633964,2629.1,2627.7,4.56303]
[1646998365704,0.3851,2628.9,2627.7,4.56303]
[1646998365896,0.05633964,2629.1,2627.7,5.56303]
[1646998365897,0.3851,2628.7,2627.7,5.56303]
[1646998366094,0.8461,2628.6,2627.8,1.5214]
[1646998366301,0.51835087,2628.5,2627.8,1.5214]
[1646998366503,0.04833454,2628.4,2628.3,0.8313309]
[1646998366699,0.461,2628.5,2628.3,0.8313309]
[1646998366899,0.0024,2629.2,2628.3,0.8313309]
[1646998366900,0.461,2629.0,2628.3,0.8313309]
[1646998367399,0.06128743,2628.9,2628.5,0.95049]
[1646998367601,0.06128743,2628.9,2628.5,2.85152]
[1646998367801,12.211,2628.8,2628.4,1.90098]
[1646998368001,0.04830131,2628.7,2628.4,1.90098]
[1646998368306,0.461,2628.6,2628.4,1.90098]
[1646998368703,0.461,2628.6,2628.0,2.75719179]
[1646998368704,0.06158421,2628.5,2628.0,2.75719179]
[1646998368945,1.26636275,2628.6,2627.7,1.14096]
[1646998368946,0.04868843,2628.3,2627.7,1.14096]
[1646998369148,0.461,2628.2,2627.7,1.14096]
[1646998369346,0.0488405,2628.1,2627.7,1.14096]
[1646998369551,0.461,2628.2,2627.8,0.95084]
[1646998369751,0.06161325,2628.4,2627.8,2.85244]
[1646998369948,0.461,2628.5,2627.8,2.85244]
[1646998370151,0.461,2628.4,2627.8,2.85244]
[1646998370352,0.461,2628.4,2627.8,3.6130152]
[1646998370552,0.461,2628.4,2627.9,1.02660466]
[1646998370752,0.0024,2629.2,2628.2,0.95048]
[1646998370753,0.00096,2629.0,2628.2,0.95048]
[1646998370949,0.0024,2629.2,2628.4,1.14031]
[1646998371152,0.461,2629.7,2628.5,7.0]
[1646998371454,0.10793163,2630.2,2628.7,0.7602166]
[1646998371455,0.461,2630.1,2628.7,0.7602166]
[1646998371652,0.87692618,2629.9,2628.8,0.0792231]
[1646998371851,3.5,2629.8,2629.0,0.95027]
[1646998372051,0.03834658,2629.4,2629.0,0.0030002]
[1646998372695,0.461,2629.3,2629.0,0.0030002]
[1646998372896,0.461,2629.3,2628.7,1.90044]
[1646998372897,0.8461,2629.3,2628.7,1.90044]
[1646998373097,0.8461,2629.3,2628.5,0.3802165]
[1646998373098,0.04129376,2629.2,2628.3,1.57043]
[1646998373297,0.461,2629.1,2628.3,1.57043]
[1646998373497,4.30152077,2629.4,2628.5,0.95064]
[1646998373498,0.04586003,2628.9,2628.5,0.95064]
[1646998373696,0.04845968,2628.8,2628.4,1.12909513]
[1646998374294,0.04845968,2628.8,2628.5,1.90104]
[1646998374496,0.04845968,2628.8,2628.4,1.14069]
[1646998374699,0.04845968,2628.8,2627.8,1.7111]
[1646998374700,0.8461,2628.8,2628.1,0.57047]
[1646998374903,0.04866629,2628.7,2627.3,6.73434833]
[1646998375097,0.4265461,2628.5,2627.3,6.73434833]
[1646998375298,1.12549972,2628.3,2627.7,0.80631694]
[1646998375500,0.04689916,2628.2,2627.3,5.73434833]
[1646998375700,1.58649972,2628.3,2627.7,1.141]
[1646998375701,0.461,2628.3,2627.7,1.141]
[1646998375899,0.3,2628.8,2627.7,1.141]
[1646998375900,0.30096,2628.5,2627.7,1.141]
[1646998376098,0.04341332,2628.4,2627.8,0.380261]
[1646998376358,0.04341332,2628.4,2627.8,2.281591]
[1646998376551,0.04341332,2628.4,2627.4,1.71138]
[1646998376850,0.04583758,2628.3,2628.0,0.00445789]
[1646998377049,0.461,2628.6,2628.0,0.00445789]
[1646998377249,0.04315438,2628.5,2628.0,0.00445789]
[1646998377456,0.19116,2629.3,2628.1,4.0]
[1646998377654,0.461,2629.2,2628.1,4.06979268]
[1646998377852,0.04156773,2629.1,2628.6,0.82940948]
[1646998378154,0.04156773,2629.1,2628.7,0.57035]
[1646998378155,0.05001558,2629.0,2628.7,0.57035]
[1646998378350,0.05001558,2629.0,2628.4,1.1407]
[1646998378754,0.03930658,2629.4,2628.5,0.0690404]
[1646998378953,0.08616105,2629.4,2628.7,0.57036]
[1646998379153,0.08616105,2629.4,2628.5,0.95057]
[1646998379154,0.461,2629.3,2628.5,0.95057]
[1646998379356,0.03834658,2629.4,2628.5,0.95057]
[1646998379357,0.00247331,2629.4,2628.6,0.08837297]
[1646998379555,0.00247331,2629.4,2629.3,1.10466591]
[1646998379755,0.00247331,2629.4,2629.3,1.1936929]
[1646998381403,0.00247331,2629.4,2629.3,1.4936929]
[1646998381605,0.00247331,2629.4,2629.3,1.1936929]
[1646998381902,0.00247331,2629.4,2629.3,0.08902699]
[1646998382904,0.00247331,2629.4,2629.3,1.16350125]
[1646998383204,0.00247331,2629.4,2629.3,0.08902699]
[1646998383404,0.00247331,2629.4,2629.1,0.08083199]
[1646998383604,0.00247331,2629.4,2629.0,0.00430318]
[1646998383858,0.00247331,2629.4,2628.9,0.07089065]
[1646998384051,0.00247331,2629.4,2628.1,17.66536]
[1646998384052,12.211,2629.3,2628.2,0.08129678]
[1646998384250,12.61111843,2629.1,2629.0,0.00430313]
[1646998384453,13.07211843,2629.1,2629.0,0.00430313]
[1646998384651,1.32211843,2629.1,2629.0,0.00430313]
[1646998385256,1.32211843,2629.1,2628.3,0.94487482]
[1646998385257,5.20721843,2629.1,2628.3,0.08416475]
[1646998385455,5.20721843,2629.1,2628.9,0.00411209]
[1646998385456,1.70721843,2629.1,2628.9,0.00411209]
[1646998385651,12.1351,2629.0,2628.9,0.00411209]
[1646998385851,12.5961,2629.0,2628.9,0.00411209]
[1646998386051,12.1351,2628.8,2627.7,0.95089]
[1646998386251,0.05308155,2628.5,2627.7,0.95089]
[1646998386452,0.461,2628.4,2627.7,0.95089]
[1646998386655,0.461,2628.4,2627.7,1.02705019]
[1646998387054,12.211,2628.4,2627.7,0.95089]
[1646998387255,0.04602682,2628.3,2627.7,0.57053]
[1646998387606,0.461,2628.2,2627.8,0.95081]
[1646998387803,0.001375,2628.2,2627.8,0.95081]
[1646998388102,0.001375,2628.2,2628.0,0.08821748]
[1646998388611,0.461,2628.4,2628.0,0.08821748]
[1646998388910,0.461,2628.4,2627.7,0.0043527]
[1646998388911,0.05816869,2628.2,2627.7,0.0043527]
[1646998389107,12.211,2628.1,2627.7,0.0043527]
[1646998389508,12.211,2628.1,2627.7,5.27e-05]
[1646998389711,11.75,2627.9,2627.7,5.27e-05]
[1646998389907,1.01915374,2627.3,2626.9,0.0753822]
[1646998390113,1.48015374,2627.3,2626.9,0.0753822]
[1646998390312,13.23015374,2627.3,2626.0,0.27849312]
[1646998390511,13.23015374,2627.3,2626.0,0.08456275]
[1646998390709,0.04521512,2627.2,2626.0,0.08456275]
[1646998390910,12.25621512,2627.2,2626.4,0.08365528]
[1646998391121,1.12332708,2626.9,2626.2,1.01773068]
[1646998391357,1.12332708,2626.9,2626.5,0.57082]
[1646998391545,0.461,2627.0,2626.5,0.57082]
[1646998391745,0.761,2627.0,2626.5,0.57082]
[1646998392146,0.51359187,2627.0,2626.2,1.71214]
[1646998392448,0.51359187,2627.0,2626.1,0.6612645]
[1646998392449,11.79583735,2626.9,2626.1,0.6612645]
[1646998392654,11.79583735,2626.9,2625.9,0.5]
[1646998392655,12.1351,2626.7,2625.9,0.5]
[1646998392850,12.1351,2626.5,2625.9,0.5]
[1646998393047,0.81133598,2626.0,2625.9,0.5]
[1646998393348,1.27233598,2626.0,2625.9,0.5]
[1646998393548,1.27233598,2626.0,2625.1,0.95183]
[1646998393549,13.02233598,2626.0,2625.1,0.95183]
[1646998393746,13.02233598,2626.0,2624.9,1.71299]
[1646998393747,0.461,2626.0,2624.9,1.71299]
[1646998393956,0.461,2626.0,2625.2,1.0]
[1646998394150,25.23935374,2627.2,2625.3,3.04483]
[1646998394151,3.50096,2627.1,2625.3,3.04483]
[1646998394353,0.461,2626.7,2626.0,0.57091]
[1646998394552,12.211,2626.6,2626.0,0.57091]
[1646998394755,12.211,2626.6,2625.8,0.95597263]
[1646998394756,0.86589151,2626.1,2625.8,0.00445263]
[1646998395204,0.461,2626.1,2625.8,0.00445263]
[1646998395398,0.461,2626.1,2625.8,2.09780263]
[1646998395599,11.75,2627.1,2625.9,0.5709]
[1646998395801,0.461,2626.7,2625.9,0.5709]
[1646998395999,0.461,2626.8,2625.9,0.5709]
[1646998396201,0.461,2627.1,2626.2,1.00788115]
[1646998396603,0.1902,2627.8,2626.2,1.00788115]
[1646998396604,0.19116,2627.8,2626.4,0.57524201]
[1646998396801,0.19116,2627.8,2626.5,1.0225755]
[1646998396802,0.00096,2627.8,2626.5,1.0225755]
[1646998397002,0.00096,2627.8,2626.6,0.06748483]
[1646998397201,0.0044494,2627.9,2627.6,1.11972736]
[1646998397400,1.11836945,2628.2,2626.9,0.07444112]
[1646998397401,1.11932945,2628.2,2626.9,0.07444112]
[1646998397600,0.0039102,2627.9,2627.7,0.57047]
[1646998398002,0.95891057,2628.2,2627.7,0.57047]
[1646998398400,1.0984198,2627.8,2627.7,0.57047]
[1646998398603,1.0984198,2627.8,2627.3,0.57062]
[1646998398860,1.0984198,2627.8,2627.0,1.1413]
[1646998398861,12.1351,2627.7,2627.0,1.1413]
[1646998399056,1.5594198,2627.8,2627.0,1.1413]
[1646998399057,0.461,2627.6,2627.0,1.1413]
[1646998399453,0.461,2627.6,2627.1,1.00373927]
[1646998399654,0.461,2627.6,2627.2,1.5217]
[1646998400254,9.79344955,2628.3,2627.3,8.5]
[1646998400465,0.00096,2628.5,2627.4,3.5]
[1646998400654,0.00096,2628.5,2628.2,0.92174815]
[1646998400857,0.98882345,2628.8,2627.9,1.90131]
[1646998401055,11.75,2628.7,2627.9,1.90131]
[1646998401257,0.98786345,2628.8,2627.9,1.90131]
[1646998401258,0.0014762,2628.1,2627.9,1.90131]
[1646998401658,0.0014762,2628.1,2628.0,0.3]
[1646998401856,0.0014762,2628.1,2628.0,0.57050375]
[1646998402055,11.75096,2628.9,2628.0,0.57042]
[1646998402257,0.461,2628.9,2628.0,0.57042]
[1646998402461,0.00444981,2628.2,2627.9,1.14091]
[1646998402700,0.00444981,2628.2,2627.7,0.00445068]
[1646998402701,0.461,2628.1,2627.7,0.00445068]
[1646998402900,12.211,2628.1,2627.7,0.00445068]
[1646998403110,16.0961,2628.1,2627.7,0.00445068]
[1646998403401,16.0961,2628.1,2627.0,0.01780719]
[1646998403402,3.5,2628.1,2627.0,0.01780719]
[1646998403616,1.0,2628.8,2626.7,3.61402]
[1646998403617,0.70278854,2629.7,2627.8,2.5]
[1646998403802,2.64316008,2630.4,2628.5,3.0]
[1646998403803,0.007,2630.4,2628.5,3.0]
[1646998404013,0.007,2630.4,2628.5,1.90106]
[1646998404207,0.007,2630.4,2629.4,0.01283803]
[1646998404514,0.007,2630.4,2629.7,1.153]
[1646998404708,0.007,2630.4,2629.9,1.153]
[1646998404910,0.007,2630.4,2630.0,0.09005435]
[1646998405108,0.007,2630.4,2629.5,1.90013]
[1646998405109,6.5,2630.2,2629.5,1.90013]